Cogmind - Beta 16 @@@ ROGUE MODE // 2025.12.21 @ 10:27:56 Player: PE-P51 Result: Destroyed by ZK-G9L(R) with Subdweller Machine Gun Performance ------------- Evolutions (0) 0 Regions Visited (2) 400 Robots Destroyed (17) 85 Value Destroyed (516) 516 Prototype IDs (4) 80 Alien Tech Used (0) 0 Bonus (0) 0 TOTAL SCORE: 1081 Bonus ------- None Cogmind --------- Core Integrity 0/250 Matter 285/300 Energy 115/250 System Corruption 0% Temperature Cool (0) Movement Treading (320) Ox2 Location -10/Subcaves Parts ------- > --- POWER (1) -------- Ion Engine > --- PROPULSION (2) --- Light Treads Light Treads > --- UTILITY (2) ------ Huge Storage Unit Backup Plating I > --- WEAPON (2) ------- Medium Laser Medium Laser > --- INVENTORY (25) --- Ion Engine Light Treads Light Treads Light Treads Light Treads Aluminum Leg Aluminum Leg Small Storage Unit Small Battery (100) Signal Interpreter Propulsion Shielding Grenade Launcher Peak State ------------ > --- POWER ------------ Light Nuclear Core > --- PROPULSION ------- Light Treads Light Treads > --- UTILITY ---------- Huge Storage Unit Backup Plating I > --- WEAPON ----------- Medium Laser Assault Rifle > --- INVENTORY -------- Ion Engine Ion Engine Light Treads Light Treads Aluminum Leg Aluminum Leg Small Storage Unit Propulsion Shielding Medium Laser Grenade Launcher [Rating: 10] Favorites ----------- Power Light Nuclear Core Engine Light Ion Engine Power Core Light Nuclear Core Propulsion Light Treads Treads Light Treads Leg Aluminum Leg Utility Backup Plating I Storage Huge Storage Unit Protection Backup Plating I Weapon Assault Rifle Energy Gun Medium Laser Ballistic Gun Assault Rifle Build | -11 -10 -10 ------- Run | Yrd Mat Sub Slots Evolved . | . . . Power . | . . . Propulsion . | . . . Utility . | . . . Weapon . | . . . Parts Attached 11 | . 10 1 Power 3 | . 2 1 Engine 2 | . 1 1 Core 1 | . 1 . Reactor . | . . . Propulsion 4 | . 4 . Treads 4 | . 4 . Leg . | . . . Wheel . | . . . Hover . | . . . Flight . | . . . Utility 1 | . 1 . Device . | . . . Storage 1 | . 1 . Processor . | . . . Hackware . | . . . Protection . | . . . Artifact . | . . . Weapon 3 | . 3 . Energy Gun 2 | . 2 . Energy Cannon . | . . . Ballistic Gun 1 | . 1 . Ballistic Cannon . | . . . Launcher . | . . . Special Weapon . | . . . Impact Weapon . | . . . Slashing Weapon . | . . . Piercing Weapon . | . . . Special Melee Weapon . | . . . Unidentified Prototypes . | . . . Parts Lost 3 | . 1 2 Power 1 | . . 1 Propulsion . | . . . Utility . | . . . Weapon 2 | . 1 1 Highest Loss Streak 2 | . 1 2 To Critical Strikes . | . . . Average Backups 10 | . 9 13 Power 1 | . 1 1 Propulsion 3 | . 3 6 Utility 2 | . 1 4 Weapon 2 | . 2 1 Tool/Special . | . . . Unused Backups 13 | . 4 9 Power 1 | . 1 . Propulsion 4 | . . 4 Utility 4 | . . 4 Weapon 4 | . 3 1 Tool/Special . | . . . Average Slot Usage (%) 99 | . 99 99 Engine 4 | . 6 . Core 9 | . 7 13 Treads 18 | . 15 28 Leg 9 | . 12 . Storage 14 | . 14 14 Protection 13 | . 13 14 Energy Gun 12 | . 11 15 Ballistic Gun 15 | . 16 12 Peak Build Rating 10 | . 10 10 Average Rating 8 | . 8 9 On Entrance 7 | 6 6 10 Avg Prop Armor Cover (%) . | . . . Naked Turns . | . . . Heaviest Build 90 | 12 90 90 Greatest Support 40 | 20 40 40 Greatest Overweight (x) 2 | . 2 2 Average Overweight (x) . | . . 2 Largest Inventory Capacity 25 | . 25 25 Average Capacity 16 | . 13 25 Most Carried 14 | . 14 14 Average Carried 10 | . 9 13 Final Capacity 25 | 8 25 25 Final Carried 14 | 6 14 12 Class Distribution -------------------- 100% | Mutant Dominant Class ---------------- Mutant | -10/Materials Mutant | -10/Subcaves Resources | -11 -10 -10 ----------- Run | Yrd Mat Sub Matter Collected 581 | 200 381 . Remotely . | . . . Salvage Created 699 | . 646 53 Parts 34 | . 33 1 Haulers Intercepted . | . . . Recyclers Shooed 1 | . 1 . Parts Field Recycled . | . . . Retrieved Matter . | . . . Parts Self-Destructed 2 | . . 2 Prevented . | . . . Parts Restored . | . . . Kills | -11 -10 -10 ------- Run | Yrd Mat Sub Combat Hostiles Destroyed 13 | . 12 1 Guns 13 | . 12 1 Classes Destroyed 4 | . 3 1 Worker 3 | . 3 . Watcher 1 | . 1 . Grunt 12 | . 12 . Subdweller 1 | . . 1 Best Kill Streak 3 | . 3 1 Combat Bots Only 2 | . 2 1 Max Kills in Single Turn 1 | . 1 1 Gunslinging . | . . . Exploded . | . . . Melee . | . . . Uniques/NPCs Destroyed . | . . . Combat | -11 -10 -10 -------- Run | Yrd Mat Sub Hostile Shots Fired 92 | . 66 26 Missed 22 | . 14 8 Hits 70 | . 52 18 Projectile 70 | . 52 18 Critical Strikes 4 | . 3 1 Damage Taken 1030 | . 653 377 Core 257 | . 133 124 Absorbed by Shields . | . . . Core Remaining (%) 100 | 100 . . Volleys Fired 77 | . 69 8 Largest 2 | . 2 2 Hottest 100 | . 70 100 Shots Fired 145 | . 129 16 Gun 145 | . 129 16 Cannon . | . . . Launcher . | . . . Special . | . . . Kinetic 99 | . 99 . Thermal 32 | . 16 16 Explosive . | . . . Electromagnetic 14 | . 14 . Robot Hit Streak 17 | . 10 17 Robot Miss Streak 4 | . 4 . Penetration Max . | . . . Secondary Targets 2 | . 2 . Max Gunslinging Chain 1 | . 1 . Shots Hit Robots 98 | . 82 16 Core Hits 39 | . 37 2 Critical Kills . | . . . Critical Parts Destroyed . | . . . Critical Strikes 1 | . 1 . Burn 1 | . 1 . Melee Attacks . | . . . Impact . | . . . Slashing . | . . . Piercing . | . . . Sneak Attacks . | . . . Combat Hostiles . | . . . Follow-up Attacks . | . . . Damage Inflicted 1344 | . 1145 199 Guns 1300 | . 1101 199 Cannons . | . . . Explosions . | . . . Melee . | . . . Ramming 44 | . 44 . Kinetic 876 | . 876 . Thermal 313 | . 114 199 Explosive . | . . . Electromagnetic 111 | . 111 . Impact . | . . . Slashing . | . . . Piercing . | . . . Highest Corruption . | . . . Average Corruption . | . . . Corruption Purged . | . . . Corruption Blocked . | . . . Overload Shots . | . . . Overflow Damage . | . . . Projectiles . | . . . Explosions . | . . . Melee . | . . . Knockbacks . | . . . Impact . | . . . Kinetic . | . . . Secondary . | . . . Self-Inflicted Damage . | . . . Shots . | . . . Rammed 4 | . 4 . Targets Rammed 8 | . 8 . Kicked 4 | . 4 . Crushed . | . . . Highest Temperature 318 | . 318 . Average Temperature 63 | . 63 . Received Heat Transfer 462 | . 420 42 Effects 3 | . 3 . Energy Bleed 2 | . 2 . Damage (minor) 1 | . 1 . Siege Activations . | . . . Martial Activations . | . . . Shielding Activations . | . . . Robots Disrupted . | . . . Combat Hostiles . | . . . Robots Corrupted . | . . . Combat Hostiles . | . . . Parts Fried . | . . . Impact Corruptions . | . . . Robots Melted . | . . . Combat Hostiles . | . . . Parts Melted 2 | . 1 1 Heat Transferred 999 | . 407 592 Parts Sabotaged . | . . . Parts Stolen . | . . . Parts Stripped . | . . . Power Chain Reactions . | . . . Alert | -11 -10 -10 ------- Run | Yrd Mat Sub Maximum Alert Level . | . . . Low Security (%) 100 | . 100 . Level 1 . | . . . Level 2 . | . . . Level 3 . | . . . Level 4 . | . . . Level 5 . | . . . High Security . | . . . Max Security . | . . . Peak Influence 122 | . 122 . Initial . | . . . Average 46 | . 46 . Influence Increases 351 | . 351 . Destroy 0b10 Robot/C 240 | . 240 . Destroy 0b10 Robot/NC 20 | . 20 . Destroy Leader 62 | . 62 . Successful Hack 14 | . 14 . Disable Machine 15 | . 15 . Influence Decreases 351 | . 308 43 Entered New Map 22 | . . 22 Time Decay 319 | . 298 21 Lost Part 10 | . 10 . Squads Dispatched 4 | . 4 . Investigation 1 | . 1 . Extermination . | . . . Reinforcement 3 | . 3 . Assault . | . . . Garrison . | . . . Intercept . | . . . Searches Triggered . | . . . Construction Impeded . | . . . Haulers Reinforced . | . . . Active Scanning Responses . | . . . Cargo Convoy Interrupts . | . . . Stealth | -11 -10 -10 --------- Run | Yrd Mat Sub Distress Signals . | . . . Communications Jammed . | . . . Distress Signals . | . . . Times Spotted 28 | . 26 2 Peak Tracking Total 3 | . 3 2 Tactical Retreats . | . . . Traps | -11 -10 -10 ------- Run | Yrd Mat Sub Traps Triggered . | . . . Indirectly . | . . . Trap Hack Attempts . | . . . Triggered . | . . . Disarmed . | . . . Reprogrammed . | . . . Reused . | . . . Traps Extracted . | . . . Installed . | . . . Triggered . | . . . Machines | -11 -10 -10 ---------- Run | Yrd Mat Sub Machines Disabled 1 | . 1 . Max in Single Turn 1 | . 1 . Machines Repaired . | . . . Machines Dismantled . | . . . Machines Sabotaged . | . . . Overloaded Fab Kills . | . . . Hacking | -11 -10 -10 --------- Run | Yrd Mat Sub Machines Accessed 7 | . 7 . Terminals 6 | . 6 . Fabricators . | . . . Repair Stations 1 | . 1 . Recycling Units . | . . . Scanalyzers . | . . . Garrison Access . | . . . Total Hacks 14 | . 14 . Successful 5 | . 5 . Failed 9 | . 9 . Catastrophic 2 | . 2 . Database Lockouts . | . . . Manual 2 | . 2 . Terminals 13 | . 13 . Fabricators . | . . . Repair Stations 1 | . 1 . Recycling Units . | . . . Scanalyzers . | . . . Garrison Access . | . . . Terminal Hacks 4 | . 4 . Prototype ID Bank 2 | . 2 . Emergency Access Points 1 | . 1 . Zone Layout 1 | . 1 . Fabricator Hacks . | . . . Repair Station Hacks 1 | . 1 . Refit 1 | . 1 . Recycling Unit Hacks . | . . . Scanalyzer . | . . . Garrison Access Hacks . | . . . Unauthorized Hacks . | . . . Terminals . | . . . Fabricators . | . . . Repair Stations . | . . . Recycling Units . | . . . Scanalyzers . | . . . Garrison Access . | . . . Data Cores Recovered . | . . . Used . | . . . Hacking Detections 6 | . 6 . Full Trace Events . | . . . Feedback Events . | . . . Feedback Blocked . | . . . Robot Schematics Acquired . | . . . Robots Built . | . . . Authchips . | . . . Time . | . . . Total Robot Build Rating . | . . . Part Schematics Acquired . | . . . Parts Built . | . . . Authchips . | . . . Time . | . . . Total Part Build Rating . | . . . Part Studies Acquired . | . . . Parts Repaired . | . . . Time . | . . . Parts Recycled . | . . . Recycled Matter . | . . . Retrieved Matter . | . . . Retrieved Components . | . . . Parts Scanalyzed . | . . . Part Schematics Acquired . | . . . Parts Damaged . | . . . Bothacking | -11 -10 -10 ------------ Run | Yrd Mat Sub Used RIF Installer . | . . . Robots Hacked . | . . . Non-combat . | . . . Combat . | . . . Robot Hacks Applied . | . . . Relay Couplers Released . | . . . Fabnet Peak Effective % . | . . . Robots Rewired . | . . . Allies Hacked . | . . . Hacks Repelled . | . . . Allies | -11 -10 -10 -------- Run | Yrd Mat Sub Total Allies . | . . . Largest Group . | . . . Highest-Rated Group . | . . . Highest-Rated Ally . | . . . Total Orders . | . . . Ally Attacks . | . . . Total Damage . | . . . Kills . | . . . Allies Corrupted . | . . . Allies Melted . | . . . Intel | -11 -10 -10 ------- Run | Yrd Mat Sub Active Infowar (turns) . | . . . Robot Analysis Total . | . . . Derelict Logs Recovered . | . . . Drone Launches . | . . . Drone Recoveries . | . . . Exploration | -11 -10 -10 ------------- Run | Yrd Mat Sub Turns Passed 1580 | . 1175 405 Spaces Moved 536 | 1 419 116 Core . | . . . Treads 324 | . 208 116 Legs 212 | 1 211 . Wheels . | . . . Hover . | . . . Flight . | . . . Fastest Speed 120 | 120 120 320 Average Speed 210 | 120 179 320 Slowest Speed 320 | 120 320 320 Overloaded Moves . | . . . Propulsion Burnouts . | . . . Robots Hopped . | . . . Potential Cave-ins . | . . . Cave-ins Triggered . | . . . Exploration Rate (%) 29 | 2 74 12 Regions Visited 2 Branch Regions 1 Pre-discovered Areas . | . . . Known Exits Taken . | . . . Unknown Exits Taken 2 | 1 1 . Scrap Searched . | . . . Spaces Dug . | . . . Terrain Destroyed . | . . . Melee . | . . . Projectile . | . . . AOE . | . . . Terrain Rammed . | . . . Walls Destroyed . | . . . Machines Disabled . | . . . Actions | -11 -10 -10 --------- Run | Yrd Mat Sub Total 838 | . 703 135 Wait 192 | . 183 9 Move 534 | . 418 116 Hop . | . . . Pick Up 9 | . 9 . Fast Attach 1 | . 1 . Attach 3 | . 1 2 Detach 1 | . 1 . Swap 8 | . 8 . Drop 5 | . 5 . Fire 77 | . 69 8 Melee . | . . . Ram . | . . . Kick 4 | . 4 . Crush 4 | . 4 . Escape Stasis . | . . . Rewire . | . . . Trap . | . . . Miscellaneous . | . . . Route ------- -11/Scrapyard -10/Materials (discovered 4 exits: [*Mat x2] / [*Min] / [*Sub]) -10/Subcaves History --------- Turn | Location | Event 1 | -11/Scrapyard | Discovered new exit (range 0) 1 | -11/Scrapyard | Entered Materials 329 | -10/Materials | Build established: Mutant 439 | -10/Materials | Discovered new exit (range 11) 627 | -10/Materials | Discovered new exit (range 10) 755 | -10/Materials | Discovered new exit (range 5) 938 | -10/Materials | Core integrity fell below 50% 1103 | -10/Materials | Discovered new exit (range 5) 1176 | -10/Materials | Entered Subcaves 1177 | -10/Subcaves | Approached by a straggling Scientist 1536 | -10/Subcaves | Ambushed by Subdwellers from Twisted Machinery 1566 | -10/Subcaves | Core integrity fell below 20% 1581 | -10/Subcaves | Destroyed by ZK-G9L(R) with Subdweller Machine Gun Last Messages --------------- 01103_ EXIT=FOUND 01105_ R-06 Scavenger collects Lgt. Ion Engine. 01125_ Slammed into K-01 Serf. 01148_ Slammed into W-16 Scout. LOCATION=UNKNOWN AMBIENT_HEAT=-10 GOAL=ESCAPE 01177_ Y5-WQT(c): "Thank the algorithms! I was beginning to lose hope I'd never make it past all the Subs lurking out here." 01180_ Y5-WQT(c): "Hey, let me tag along and I can get us both out of this nasty situation. At least I think I can... The group I got separated from was talking about a shortcut back to the UFD." Y5-WQT(c): "I think it's somewhere southeast of here" Y5-WQT(c): "I think it's somewhere east of here" 01536_ ZK-G9L(R) emerges from the Twisted Machinery. 01537_ Assault Rifle destroyed. 01561_ Lgt. Nuclear Core destroyed. 01574_ Sub. Laser melted. 01574_ 6W-5WK(R) destroyed. 01577_ Subatomizers dissect the Sub. Power Source. Map ----- +----------------------------------------------------+ | ????????# ### #???????????????????????????? | | ????????# ##?####???????????????????????????? | | ????????### ##??#####??????????????????????????? | | ?????????## ##???# ##?????????????????????????? | | ????????## ###### #?????????????????????????? | | ???????## #?????????????????????????? | | ???????# ##?????????????????????????? | | ???????#### ##??????????????????????????? | | ??????????## #???????????????????????????? | | ???????????## ##???????????????????????????? | | ????????????## ##????????????????????????????? | | ?????????????# #?????????????????????????????? | | ?????????????## #?????????????????????????????? | | ?????????????## #?####????????????????????????? | | ?????????##### ### ##???????????????????????? | | ????????## #?????????????????????? | | ???????## ^ #?????????????????????? | | ???????# ## ^###?????????????????????? | | ???????# ##?## ^##??????????????????????? | | ???????# ##????? #?????####?????????????? | | ???????# ##?????? ^#??? ## ????????? | | ???????# ##??????# ###? ????????? | | ???????## #????### # # ???????? | | ????????# #???## R ???????? | | ????????# #???# % "???????? | | ????????## ## #???## @# # ???????? | | ?????????## ### ##???# ###????## #???????? | | ??????????##### ##??# #??????????????????????? | | ?????????????# #### #??????????????????????? | | ?????????????# ## c#??????????????????????? | | ?????????????### #??????????????????????? | | ???????????????## ##??????????????????????? | | ????????????????##########???????????????????????? | | ?????????????????????????????????????????????????? | | ?????????????????????????????????????????????????? | | ?????????????????????????????????????????????????? | | ?????????????????????????????????????????????????? | | ?????????????????????????????????????????????????? | | ?????????????????????????????????????????????????? | | ?????????????????????????????????????????????????? | | ?????????????????????????????????????????????????? | | ?????????????????????????????????????????????????? | | ?????????????????????????????????????????????????? | | ?????????????????????????????????????????????????? | | ?????????????????????????????????????????????????? | | ?????????????????????????????????????????????????? | | ?????????????????????????????????????????????????? | | ?????????????????????????????????????????????????? | | ?????????????????????????????????????????????????? | | ?????????????????????????????????????????????????? | +----------------------------------------------------+ Best States ------------- Heat Dissipation 25 Energy Generation 14 Energy Capacity 250 Matter Stores 300 Matter Capacity 300 Sight Range 16 Terrain Scan Density 10 Armor Coverage 80 Evasion (%) 55 Recoil Reduction 2 Item Schematics ----------------- None Robot Schematics ------------------ None Fabricated ------------ Nothing Repaired ---------- Nothing Studied --------- None Alien Tech Used ----------------- None Achievements -------------- None Challenges ------------ None Game ------ Seed SkeletonMyomerRefractor Manual? 0 Play Time 00:06:52 Cumulative 213.5 hours Start 2025.12.20 @ 23:44:23 End 2025.12.21 @ 10:27:56 Sessions 3 Manual Loads 0 Difficulty Rogue Special Mode None Game No. 293 Rogue 292 Adventurer 1 Explorer 0 Win Type - Total 2 Types 1/0/0/1/0/0/0/0/0/0 Lore% 66 Gallery% 62 Achievement% 55 Wizard Run 0 Options --------- Layout 0 ASCII 0 Keyboard 0 Movement Numpad Keybinds 0 Fullscreen 1 Font 24/Smallcaps Map View 76x50 Zoom Use 0% Tactical HUD 1 Map Filters NONE Filters NONE Steam 1 RUN: 3ea82ff8-a1ce-4d93-ad7d-cf810c678d4d